bitfinex-derivatives/quotes_BTCF0:USTF0_20251216
["timestamp","ask_amount","ask_price","bid_price","bid_amount"]
[1765897800018,0.00217196,87238.0,87237.0,0.0756155]
[1765897800221,0.00217196,87238.0,87227.0,0.0114668]
[1765897800222,0.140016,87235.0,87234.0,0.0114658]
[1765897800518,0.1400171,87225.0,87224.0,0.0114671]
[1765897800719,0.12855,87225.0,87224.0,0.0114671]
[1765897800914,0.00217196,87238.0,87224.0,0.06415]
[1765897801118,0.12855,87221.0,87220.0,9.785e-05]
[1765897801328,0.12855,87231.0,87230.0,0.0114663]
[1765897801926,0.12855,87235.0,87220.0,9.785e-05]
[1765897802224,0.12855,87221.0,87220.0,9.785e-05]
[1765897802425,6.816e-05,87221.0,87220.0,0.06424785]
[1765897802628,6.816e-05,87221.0,87220.0,0.16192785]
[1765897802830,0.001,87235.0,87234.0,0.1420359]
[1765897803129,6e-08,87238.0,87237.0,0.1420355]
[1765897803830,0.12339006,87238.0,87237.0,0.0114655]
[1765897804129,0.12339,87235.0,87234.0,0.002]
[1765897804329,6e-08,87238.0,87235.0,0.0114658]
[1765897805332,0.12106,87236.0,87235.0,0.0114658]
[1765897805520,6e-08,87238.0,87235.0,0.0696958]
[1765897805724,6e-08,87238.0,87235.0,0.0114658]
[1765897806640,6e-08,87238.0,87237.0,0.001]
[1765897807532,6e-08,87238.0,87235.0,0.0134658]
[1765897807739,6e-08,87238.0,87235.0,0.0154658]
[1765897808237,6e-08,87238.0,87235.0,0.0134658]
[1765897808438,6e-08,87238.0,87237.0,0.002]
[1765897809332,6e-08,87238.0,87237.0,0.004]
[1765897809937,6e-08,87238.0,87237.0,0.002]
[1765897810133,6e-08,87238.0,87235.0,0.0134658]
[1765897810333,6e-08,87238.0,87237.0,0.002]
[1765897810734,6e-08,87238.0,87237.0,0.004]
[1765897811229,6e-08,87238.0,87237.0,0.002]
[1765897811842,0.06169006,87238.0,87237.0,0.004]
[1765897812032,0.12106,87227.0,87226.0,0.00017196]
[1765897812341,0.1325276,87221.0,87220.0,9.785e-05]
[1765897813148,0.12106,87221.0,87220.0,9.785e-05]
[1765897813646,0.12206,87221.0,87220.0,9.785e-05]
[1765897814433,0.12106,87221.0,87220.0,9.785e-05]
[1765897814638,0.12106,87208.0,87207.0,0.0114693]
[1765897814839,0.12106,87194.0,87193.0,0.0114713]
[1765897815046,0.12106,87189.0,87188.0,0.0114719]
[1765897815241,0.06169,87182.0,87181.0,0.01162404]
[1765897815441,0.12106,87182.0,87181.0,0.01162404]
[1765897815652,0.15693,87195.0,87181.0,0.01162404]
[1765897815833,0.15693,87195.0,87178.0,0.00229417]
[1765897815834,9.785e-05,87194.0,87178.0,0.00229417]
[1765897816034,0.12106,87192.0,87191.0,0.0114715]
[1765897816239,0.06169,87192.0,87191.0,0.0114715]
[1765897816552,9.785e-05,87194.0,87193.0,0.12118]
[1765897816937,9.785e-05,87194.0,87193.0,0.12318]
[1765897817541,9.785e-05,87194.0,87193.0,0.12118]
[1765897817746,9.785e-05,87194.0,87193.0,0.002]
[1765897818043,9.785e-05,87194.0,87193.0,0.004]
[1765897818250,9.785e-05,87194.0,87193.0,0.12518]
[1765897818446,9.785e-05,87194.0,87193.0,0.12318]
[1765897818641,9.785e-05,87194.0,87193.0,0.12518]
[1765897819041,0.12115785,87194.0,87193.0,0.004]
[1765897819847,0.12115785,87194.0,87193.0,0.003]
[1765897820047,9.785e-05,87194.0,87193.0,0.001]
[1765897820450,0.12115785,87194.0,87193.0,0.001]
[1765897820749,0.12115785,87194.0,87193.0,0.0124713]
[1765897820950,0.00109785,87194.0,87193.0,0.0124713]
[1765897821248,0.12215785,87194.0,87193.0,0.0124713]
[1765897821544,0.09756,87180.0,87178.0,0.00229417]
[1765897821748,0.09756,87180.0,87179.0,0.0114731]
[1765897821943,0.03587,87180.0,87179.0,0.0114731]
[1765897822151,0.12106,87193.0,87192.0,0.0114714]
[1765897823638,0.12206,87193.0,87192.0,0.0114714]
[1765897823838,0.12106,87189.0,87188.0,0.0114718]
[1765897824246,0.12206,87193.0,87192.0,0.0114714]
[1765897824842,0.001,87193.0,87192.0,0.1326514]
[1765897825039,9.785e-05,87194.0,87193.0,0.05823]
[1765897825352,0.12106,87193.0,87192.0,0.0114714]
[1765897826753,0.12206,87193.0,87192.0,0.0114714]
[1765897827055,0.12106,87190.0,87178.0,0.00229417]
[1765897827254,0.12106,87179.0,87178.0,0.01376747]
[1765897828245,0.12106,87190.0,87178.0,0.00429417]
[1765897828446,0.12106,87185.0,87184.0,0.0114724]
[1765897829458,0.12106,87179.0,87178.0,0.01576747]
[1765897829754,0.12206,87179.0,87178.0,0.01576747]
[1765897829958,0.12206,87179.0,87178.0,0.01376747]
[1765897830257,0.12206,87179.0,87178.0,4.17e-06]
[1765897830553,0.12106,87155.0,87154.0,0.0114763]
[1765897830750,0.12115785,87155.0,87154.0,0.0114763]
[1765897831151,0.12106,87145.0,87144.0,1.49e-06]
[1765897831348,0.12106,87130.0,87129.0,0.0114796]
[1765897831749,0.12106,87130.0,87116.0,0.0114814]
[1765897831750,0.12106,87117.0,87116.0,0.02266413]
[1765897832056,0.12106,87117.0,87116.0,0.0114814]
[1765897832248,0.12117092,87117.0,87116.0,0.02290805]
[1765897832450,0.00011092,87117.0,87116.0,0.14408805]
[1765897832852,0.00017216,87138.0,87137.0,0.0114787]
[1765897833049,0.00017216,87138.0,87137.0,0.1326587]
[1765897833658,6e-08,87138.0,87137.0,0.1326587]
[1765897833961,0.15339,87164.0,87163.0,0.0114752]
[1765897834848,0.05876,87159.0,87155.0,0.00017216]
[1765897835053,0.05876,87157.0,87156.0,0.0114762]
[1765897835255,0.11752,87157.0,87156.0,0.0114762]
[1765897835656,0.00017216,87172.0,87156.0,0.0114762]
[1765897835657,0.00017216,87172.0,87171.0,0.1291542]
[1765897835857,6e-08,87172.0,87171.0,0.1291542]
[1765897836165,6e-08,87172.0,87171.0,0.5291542]
[1765897836460,0.03587,87195.0,87194.0,0.0114712]
[1765897836958,0.15339,87195.0,87194.0,0.0114712]
[1765897837262,0.11752,87186.0,87185.0,0.0114722]
[1765897837654,0.11752,87178.0,87177.0,0.00017205]
[1765897838158,0.11752,87178.0,87171.0,0.003]
[1765897838159,0.11752,87172.0,87171.0,0.003]
[1765897838366,0.11752,87157.0,87156.0,0.0114761]
[1765897838666,0.11752,87153.0,87152.0,0.0114766]
[1765897840261,0.00017205,87161.0,87160.0,0.0114756]
[1765897840262,0.05893205,87161.0,87160.0,0.0114756]
[1765897840457,0.0114756,87160.0,87144.0,0.01163441]
[1765897840656,0.11752,87145.0,87144.0,0.01164975]
[1765897841654,0.05876,87145.0,87144.0,0.01164975]
[1765897842055,0.11752,87145.0,87144.0,0.01164975]
[1765897843466,0.05876,87145.0,87144.0,0.01164975]
[1765897843764,0.28915142,87160.0,87149.0,0.05735]
[1765897843955,0.11752,87159.0,87155.0,0.0114763]
[1765897844156,0.11752,87156.0,87155.0,0.0114763]
[1765897844965,0.00017205,87161.0,87155.0,0.0114763]
[1765897844966,0.002,87160.0,87159.0,0.1291558]
[1765897845151,0.11952,87160.0,87159.0,0.0114758]
[1765897845353,0.11752,87145.0,87144.0,0.01164975]
[1765897846960,0.15324,87150.0,87149.0,0.0114771]
[1765897848468,0.11752,87145.0,87144.0,0.00017205]
[1765897850459,0.11852,87145.0,87144.0,0.00017205]
[1765897850860,0.11852,87145.0,87144.0,2.05e-06]
[1765897851361,0.12152,87145.0,87144.0,2.05e-06]
[1765897851856,0.11952,87145.0,87144.0,2.05e-06]
[1765897852061,0.12152,87145.0,87144.0,2.05e-06]
[1765897852961,0.12252,87145.0,87144.0,2.05e-06]
[1765897854264,0.12252,87145.0,87125.0,0.0114802]
[1765897854265,0.11752,87126.0,87125.0,0.0114802]
[1765897855073,0.11752,87119.0,87118.0,0.02300232]
[1765897855278,0.11760856,87119.0,87118.0,0.02300232]
[1765897855473,0.11760856,87119.0,87118.0,0.01152112]
[1765897855975,0.11752,87112.0,87111.0,0.011482]
[1765897856174,0.11752,87106.0,87105.0,0.0114828]
[1765897856374,0.0472026,87108.0,87098.0,0.00229628]
[1765897856375,0.11752,87099.0,87098.0,0.01378008]
[1765897857376,0.11760472,87099.0,87098.0,0.00229628]
[1765897858367,8.472e-05,87099.0,87098.0,0.11997628]
[1765897858571,0.11752,87107.0,87106.0,0.0114827]
[1765897858770,0.05876,87107.0,87106.0,0.0688327]
[1765897859077,0.11752,87120.0,87119.0,0.011481]
[1765897860276,0.00017216,87128.0,87111.0,0.00017216]
[1765897860277,0.11752,87112.0,87111.0,0.01165426]
[1765897860476,0.11752,87112.0,87111.0,0.00017216]
[1765897860873,0.11752,87112.0,87098.0,0.00229628]
[1765897860874,0.11752,87099.0,87098.0,0.00229628]
[1765897861371,0.11752,87099.0,87098.0,0.01378008]
[1765897861574,0.15324,87108.0,87107.0,0.0114826]
[1765897861979,0.00017216,87116.0,87115.0,0.0114816]
[1765897862284,0.0114763,87156.0,87108.0,0.0358]
[1765897862285,0.11752,87140.0,87139.0,0.0114783]
[1765897862870,0.11752,87154.0,87153.0,0.0114765]
[1765897863072,0.05876,87146.0,87145.0,0.0114776]
[1765897863279,0.05876,87138.0,87137.0,0.00017216]
[1765897863476,0.05876,87138.0,87137.0,0.01165086]
[1765897863679,0.11752,87138.0,87137.0,0.01165086]
[1765897864072,0.11752,87138.0,87137.0,0.00017216]
[1765897864474,0.002,87140.0,87139.0,0.13045]
[1765897864790,0.004,87140.0,87139.0,0.13045]
[1765897865083,0.002,87140.0,87139.0,0.13045]
[1765897865580,0.00017216,87154.0,87153.0,0.0114765]
[1765897865781,0.00017216,87154.0,87153.0,0.1419265]
[1765897866779,0.00217216,87154.0,87153.0,0.1419265]
[1765897867580,0.00017216,87154.0,87153.0,0.1439265]
[1765897868078,0.06603417,87178.0,87177.0,0.0114734]
[1765897868285,0.13198417,87178.0,87177.0,0.0114734]
[1765897868480,0.00229417,87178.0,87177.0,0.0756634]
[1765897868983,0.00229417,87178.0,87177.0,0.1419234]
[1765897869479,0.00529417,87178.0,87177.0,0.1419234]
[1765897869975,0.00629417,87178.0,87177.0,0.1419234]
[1765897870574,0.00017216,87186.0,87185.0,0.1419223]
[1765897871273,0.12969,87178.0,87177.0,0.0134733]
[1765897872284,0.12969,87174.0,87173.0,0.0114739]
[1765897872676,0.00117216,87186.0,87169.0,0.00017216]
[1765897872677,0.12969,87170.0,87169.0,0.00017216]
[1765897873083,0.06374,87158.0,87140.0,0.19775998]
[1765897873288,0.12969,87148.0,87147.0,0.0114773]
[1765897874087,0.06374,87148.0,87147.0,0.0114773]
[1765897874291,0.06474,87148.0,87147.0,0.0114773]
[1765897874479,0.001,87148.0,87147.0,0.0114773]
[1765897874674,0.001,87148.0,87147.0,0.1419273]
[1765897874879,0.00017205,87156.0,87155.0,0.1419263]
[1765897875275,5e-08,87156.0,87155.0,0.1419263]
[1765897875486,5e-08,87156.0,87155.0,0.5419263]
[1765897876293,0.19652,87190.0,87189.0,0.0756618]
[1765897876481,0.19751907,87200.0,87192.0,0.0114714]
[1765897876482,0.12969,87193.0,87192.0,0.0114714]
[1765897876979,0.32720907,87200.0,87199.0,0.0114705]
[1765897877186,0.12969,87200.0,87199.0,0.0114705]
[1765897877705,0.12969,87192.0,87191.0,0.00017205]
[1765897878391,0.003,87200.0,87199.0,0.1419205]
[1765897878889,0.0028278,87200.0,87199.0,0.1419205]
[1765897879782,0.00017205,87208.0,87207.0,0.1419194]
[1765897879982,0.00017205,87208.0,87207.0,0.0114694]
[1765897880183,0.00017205,87208.0,87207.0,0.1419194]
[1765897880985,0.00317205,87208.0,87207.0,0.0114694]
[1765897881285,0.00317205,87208.0,87207.0,0.0756594]
[1765897881487,0.00317205,87208.0,87207.0,0.1419194]
[1765897881682,0.00517205,87208.0,87207.0,0.1419194]
[1765897882088,0.00517205,87208.0,87207.0,0.0114694]
[1765897882288,0.06891205,87208.0,87207.0,0.0114694]
[1765897882491,0.00517205,87208.0,87207.0,0.0114694]
[1765897882702,0.00517205,87208.0,87207.0,0.0756594]
[1765897882992,0.06891205,87208.0,87195.0,0.03873]
[1765897883705,0.06374,87206.0,87205.0,0.0114696]
[1765897883994,0.06374,87196.0,87192.0,0.0114714]
[1765897884300,0.06374,87193.0,87192.0,0.0114714]
[1765897884484,0.06374,87193.0,87191.0,0.00017205]
[1765897884684,0.06374,87205.0,87191.0,0.00017205]
[1765897884886,0.002,87206.0,87205.0,0.0114697]
[1765897885295,0.13169,87206.0,87205.0,0.0114697]
[1765897886090,0.12969,87203.0,87195.0,0.03873]
[1765897886394,0.12969,87196.0,87195.0,0.011471]
[1765897887590,0.13069,87196.0,87195.0,0.011471]
[1765897888085,0.12969,87192.0,87191.0,0.00017205]
[1765897888794,0.1411614,87192.0,87191.0,0.00017205]
[1765897889001,0.12969,87192.0,87191.0,0.00017205]
[1765897890295,0.0114707,87198.0,87191.0,0.00017205]
[1765897890296,0.0114704,87200.0,87192.0,0.03873]
[1765897890494,0.06374,87193.0,87192.0,0.0502014]
[1765897890799,0.12969,87201.0,87200.0,0.0114704]
[1765897892193,0.13069,87201.0,87200.0,0.0114704]
[1765897892597,0.001,87201.0,87200.0,0.1419204]
[1765897893007,0.003,87201.0,87200.0,0.1419204]
[1765897894703,0.00017205,87208.0,87207.0,0.1367494]
[1765897895499,0.0114656,87237.0,87217.0,0.1732981]
[1765897895698,0.0114654,87238.0,87217.0,0.1732981]
[1765897895893,0.19751907,87240.0,87217.0,0.1732981]
[1765897896288,0.19751907,87230.0,87217.0,0.1732981]
[1765897896495,0.00017205,87226.0,87217.0,0.1732981]
[1765897896896,0.00629312,87218.0,87217.0,0.1732981]
[1765897897296,0.05899,87249.0,87238.0,0.0114653]
[1765897897502,0.12361,87239.0,87238.0,0.0114653]
[1765897898202,0.06462,87239.0,87238.0,0.1367453]
[1765897898401,0.06462,87245.0,87244.0,0.0114645]
[1765897898607,0.12361,87239.0,87238.0,0.001]
[1765897898807,0.12361,87239.0,87238.0,0.002]
[1765897899203,0.12361,87239.0,87238.0,0.001]
[1765897899405,0.13561,87239.0,87238.0,0.002]
[1765897901006,0.13061,87239.0,87238.0,0.001]
[1765897901604,0.12461,87239.0,87236.0,0.0114656]
[1765897901809,0.12361,87237.0,87236.0,0.0114656]
[1765897902107,0.06462,87231.0,87230.0,0.00017196]
[1765897902302,0.12361,87231.0,87230.0,0.00017196]
[1765897904309,0.12461,87231.0,87230.0,0.00017196]
[1765897905112,0.12361,87214.0,87213.0,0.0114686]
[1765897905498,0.12361,87205.0,87204.0,0.0480198]
[1765897905701,0.12361,87205.0,87204.0,0.0114698]
[1765897905897,0.12361,87202.0,87201.0,0.01159616]
[1765897906103,0.12361,87202.0,87201.0,0.00012596]
[1765897906500,0.06479196,87210.0,87209.0,0.0114692]
[1765897906911,0.00017196,87210.0,87209.0,0.1367492]
[1765897907718,6e-08,87210.0,87209.0,0.1367492]
[1765897907909,6e-08,87210.0,87209.0,0.5367492]
[1765897908208,6e-08,87210.0,87209.0,0.1367492]
[1765897908403,6e-08,87210.0,87209.0,0.1377492]
[1765897909114,6e-08,87210.0,87209.0,0.1407492]
[1765897909613,6e-08,87210.0,87209.0,0.1377492]
[1765897909814,6e-08,87210.0,87209.0,0.1387492]
[1765897910015,0.12361006,87210.0,87209.0,0.0134692]
[1765897910407,6e-08,87210.0,87209.0,0.1387492]
[1765897911016,0.06462006,87210.0,87209.0,0.1377492]
[1765897911315,0.12361006,87210.0,87209.0,0.0124692]
[1765897911707,0.12361006,87210.0,87209.0,0.0114692]
[1765897911911,0.12361006,87210.0,87209.0,0.001]
[1765897912307,0.12361,87203.0,87202.0,0.01147]
[1765897913019,0.12361,87203.0,87202.0,0.13675]
[1765897913223,0.12361006,87210.0,87209.0,0.0114692]
[1765897913409,6e-08,87210.0,87209.0,0.1367492]
[1765897914314,0.06462006,87210.0,87209.0,0.1367492]
[1765897915224,6e-08,87210.0,87209.0,0.1377492]
[1765897916012,6e-08,87210.0,87209.0,0.0731692]
[1765897916318,6e-08,87210.0,87209.0,0.4741692]
[1765897916810,0.12361,87254.0,87253.0,0.0114633]
[1765897917408,0.00229207,87258.0,87257.0,0.1367429]
[1765897918417,7e-08,87258.0,87257.0,0.1367429]
[1765897918616,7e-08,87258.0,87257.0,0.5367429]
[1765897918817,0.12361,87291.0,87290.0,0.0114584]
[1765897919118,0.06462,87291.0,87290.0,0.0114584]
[1765897919321,1.434,87310.0,87296.0,0.0114576]
[1765897919322,0.06462,87297.0,87296.0,0.0114576]
[1765897920019,0.12361,87297.0,87296.0,1.5]
[1765897920713,0.00017184,87305.0,87304.0,0.12528]
[1765897920914,0.19751907,87340.0,87315.0,0.03655]
[1765897921115,0.19751907,87340.0,87296.0,1.5]
[1765897921116,0.12361,87303.0,87302.0,0.0114569]
[1765897921322,0.06462,87314.0,87313.0,0.0114555]
[1765897921617,0.06462,87328.0,87319.0,0.0114547]
[1765897921819,0.06462,87323.0,87322.0,0.0114542]
[1765897922016,0.12361,87323.0,87318.0,0.0114549]
[1765897922320,0.12361,87330.0,87329.0,0.0114534]
[1765897922526,0.0001126,87332.0,87329.0,0.0114534]
[1765897922729,0.0001126,87332.0,87331.0,0.12528]
[1765897923021,0.0114541,87325.0,87322.0,0.001]
[1765897923316,0.0001126,87332.0,87330.0,0.0480032]
[1765897923516,0.0114541,87325.0,87315.0,0.03672184]
[1765897923719,0.19751907,87325.0,87315.0,0.03545184]
[1765897923922,0.19751907,87330.0,87315.0,0.03545184]
[1765897924118,0.12012,87316.0,87315.0,0.00017184]
[1765897924914,0.1315776,87297.0,87284.0,0.0114592]
[1765897925217,0.1315776,87297.0,87265.0,0.01160949]
[1765897925218,0.0114576,87298.0,87269.0,0.01220247]
[1765897925419,0.28907619,87280.0,87269.0,0.01220247]
[1765897925624,0.28907619,87290.0,87270.0,1.53528]
[1765897925810,0.01146,87279.0,87270.0,1.53528]
[1765897926015,0.12012,87272.0,87271.0,0.00017184]
[1765897927520,0.0114588,87288.0,87274.0,0.0114606]
[1765897927727,0.0114593,87285.0,87271.0,0.00017184]
[1765897927916,0.12012,87272.0,87271.0,0.00017184]
[1765897928528,0.12012,87272.0,87271.0,1.84e-06]
[1765897928724,0.42184,87272.0,87218.0,0.00229312]
[1765897928920,0.12012,87242.0,87241.0,0.0114649]
[1765897929421,0.40919619,87250.0,87249.0,0.0114639]
[1765897929727,0.40932214,87250.0,87249.0,0.0114639]
[1765897930026,0.40932214,87250.0,87249.0,0.1294339]
[1765897930027,0.00012595,87250.0,87249.0,0.1294339]
[1765897931224,5e-08,87250.0,87249.0,0.1314339]
[1765897931619,1e-07,87258.0,87257.0,0.1294329]
[1765897933220,1e-07,87258.0,87257.0,0.004]
[1765897933221,0.1201201,87258.0,87257.0,0.004]
[1765897933730,0.1201201,87258.0,87257.0,0.007]
[1765897934126,0.1315828,87258.0,87257.0,0.007]
[1765897934428,0.12012,87244.0,87243.0,0.0114646]
[1765897934630,0.12012,87242.0,87238.0,0.0114652]
[1765897934830,0.12012,87242.0,87241.0,0.01163695]
[1765897935027,0.12012,87242.0,87241.0,0.00017195]
[1765897935230,0.1315879,87219.0,87206.0,8.132e-05]
[1765897935531,0.1315879,87219.0,87207.0,0.0114694]
[1765897936233,0.1315879,87219.0,87210.0,0.00017195]
[1765897936426,0.1315889,87211.0,87210.0,0.00017195]
[1765897936727,0.1315889,87211.0,87210.0,1.95e-06]
[1765897937634,0.1325889,87211.0,87210.0,1.95e-06]
[1765897937927,0.1315894,87207.0,87206.0,8.132e-05]
[1765897938136,0.12012,87191.0,87190.0,0.0114716]
[1765897938629,0.72644,87203.0,87178.0,0.00229417]
[1765897938630,0.12012,87202.0,87201.0,0.0114701]
[1765897939029,0.12020074,87202.0,87201.0,0.0114701]
[1765897939231,0.12012,87197.0,87196.0,0.0114708]
[1765897940331,0.12012,87194.0,87193.0,0.00017205]
[1765897940528,8.074e-05,87202.0,87193.0,0.15342205]
[1765897940723,0.0581,87201.0,87200.0,0.0114703]
[1765897941433,0.12012,87201.0,87200.0,0.0114703]
[1765897941827,0.0581,87197.0,87196.0,0.0134708]
[1765897942031,0.1315908,87197.0,87196.0,0.002]
[1765897942224,0.1315908,87197.0,87193.0,0.00017205]
[1765897942225,0.1315912,87194.0,87193.0,0.00017205]
[1765897942425,0.1315912,87194.0,87193.0,0.00217205]
[1765897942834,0.12012,87179.0,87175.0,0.0114735]
[1765897943030,0.120227,87179.0,87175.0,0.0114735]
[1765897943334,0.520227,87179.0,87178.0,4.17e-06]
[1765897943937,0.1315963,87155.0,87154.0,9.628e-05]
[1765897944236,0.1202182,87155.0,87154.0,9.628e-05]
[1765897944937,9.82e-05,87155.0,87154.0,0.06110628]
[1765897946035,0.0010982,87155.0,87154.0,0.06110628]
[1765897946241,0.0591982,87155.0,87154.0,9.628e-05]
[1765897946543,0.0030982,87155.0,87154.0,0.11806628]
[1765897947737,0.00017205,87163.0,87162.0,0.0114754]
[1765897948040,0.00017205,87163.0,87162.0,0.1294454]
[1765897949339,0.00017205,87163.0,87162.0,0.1304454]
[1765897949537,0.28981357,87180.0,87179.0,0.0114731]
[1765897949838,0.28981357,87189.0,87169.0,0.0114744]
[1765897950038,0.28981357,87180.0,87179.0,0.0114731]
[1765897950245,0.40993357,87189.0,87188.0,0.0114719]
[1765897950540,0.05827205,87197.0,87196.0,0.0114708]
[1765897950735,0.00017205,87205.0,87200.0,0.0114703]
[1765897950937,0.00017205,87205.0,87202.0,0.01147]
[1765897951246,0.00017205,87205.0,87204.0,0.06101]
[1765897951445,0.00017205,87205.0,87204.0,0.11797]
[1765897951938,0.00417205,87205.0,87204.0,0.11797]
[1765897953133,0.00417205,87205.0,87204.0,0.11897]
[1765897953742,0.12114205,87205.0,87204.0,0.001]
[1765897953942,0.00417205,87205.0,87204.0,0.05848]
[1765897954448,0.12114205,87205.0,87204.0,0.001]
[1765897954631,0.11714205,87205.0,87204.0,0.001]
[1765897954832,0.00017205,87205.0,87204.0,0.002]
[1765897955035,0.00017205,87205.0,87204.0,0.001]
[1765897955233,0.00017205,87205.0,87203.0,0.0114699]
[1765897955449,0.00017205,87205.0,87200.0,0.03393]
[1765897955846,0.00017205,87205.0,87204.0,0.0114698]
[1765897956042,0.00117205,87205.0,87204.0,0.0114698]
[1765897956245,0.00117205,87205.0,87204.0,0.1267598]
[1765897956851,0.00217205,87205.0,87204.0,0.1267598]
[1765897957154,0.00217205,87205.0,87204.0,0.0689498]
[1765897957340,0.06006205,87205.0,87204.0,0.0114698]
[1765897957849,0.00217205,87205.0,87204.0,0.1267598]
[1765897958152,0.00317205,87205.0,87204.0,0.1267598]
[1765897958651,0.00217205,87205.0,87204.0,0.1267598]
[1765897958852,0.00017205,87205.0,87204.0,0.1267598]
[1765897959349,0.00017205,87205.0,87204.0,0.1277598]
[1765897959748,5e-08,87205.0,87204.0,0.1290662]
[1765897959940,5e-08,87205.0,87204.0,0.12984503]
[1765897960542,5e-08,87205.0,87204.0,0.5277598]
[1765897960745,5e-08,87205.0,87204.0,0.53062386]
[1765897960943,5e-08,87205.0,87204.0,0.53140269]
[1765897961549,5e-08,87205.0,87204.0,0.53318212]
[1765897961939,5e-08,87205.0,87204.0,0.5287598]
[1765897962144,5e-08,87205.0,87204.0,0.62390159]
[1765897962354,5e-08,87205.0,87204.0,0.62590159]
[1765897962550,5e-08,87205.0,87204.0,0.62668042]
[1765897963057,5e-08,87205.0,87204.0,0.62545925]
[1765897963250,5e-08,87205.0,87204.0,0.62745925]
[1765897963444,5e-08,87205.0,87204.0,0.62823808]
[1765897964156,3.17e-06,87218.0,87217.0,0.1267581]
[1765897965354,3.17e-06,87218.0,87217.0,0.86236723]
[1765897966843,3.17e-06,87218.0,87217.0,0.13564723]
[1765897967160,0.11697317,87218.0,87217.0,0.02035723]
[1765897967347,0.05789317,87218.0,87217.0,0.07783723]
[1765897967660,3.17e-06,87218.0,87217.0,0.02035723]
[1765897968460,3.17e-06,87218.0,87217.0,0.01935723]
[1765897969757,3.17e-06,87218.0,87217.0,0.020132]
[1765897970450,3.17e-06,87218.0,87217.0,0.02122675]
[1765897970656,3.17e-06,87218.0,87217.0,0.0213215]
[1765897971051,3.17e-06,87218.0,87217.0,0.02141625]
[1765897971254,3.17e-06,87218.0,87217.0,0.05182841]
[1765897971454,3.17e-06,87218.0,87217.0,0.04288026]
[1765897971657,3.17e-06,87218.0,87217.0,0.05192316]
[1765897971852,0.00017205,87226.0,87225.0,0.1267571]
[1765897971853,5.22e-06,87226.0,87225.0,0.1267571]
[1765897972060,5.22e-06,87226.0,87225.0,0.16630691]
[1765897972258,5.22e-06,87226.0,87225.0,0.2068419]
[1765897972555,5.22e-06,87226.0,87225.0,0.16649641]
[1765897972761,5.22e-06,87226.0,87225.0,0.20703087]
[1765897972956,0.00100522,87226.0,87225.0,0.16649641]
[1765897973261,0.11697,87249.0,87234.0,0.03393]
[1765897973446,0.05789,87243.0,87242.0,0.0114647]
[1765897973652,0.11697,87243.0,87242.0,0.02092003]
[1765897974152,0.11697,87243.0,87242.0,0.05134257]
[1765897974459,0.11697,87243.0,87242.0,0.10882257]
[1765897974663,0.00017195,87251.0,87250.0,0.11529]
[1765897974852,0.11697,87250.0,87249.0,0.0114639]
[1765897975158,0.00017195,87251.0,87250.0,0.11529]
[1765897975369,0.00017195,87251.0,87250.0,0.14570702]
[1765897975656,0.00017195,87251.0,87250.0,0.15516235]
[1765897975657,1.95e-06,87251.0,87250.0,0.15516235]
[1765897975861,2e-08,87258.0,87250.0,0.15516235]
[1765897976053,2e-08,87258.0,87257.0,0.1267529]
[1765897976357,2e-08,87258.0,87257.0,0.55716992]
[1765897976862,2e-08,87258.0,87257.0,0.56662525]
[1765897977156,0.28981357,87310.0,87257.0,0.56662525]
[1765897977157,7e-08,87266.0,87265.0,0.1267518]
[1765897977351,0.11697,87299.0,87298.0,0.0114574]
[1765897977549,0.28981357,87310.0,87303.0,0.0114568]
[1765897977550,0.11697,87304.0,87303.0,0.0114568]
[1765897977765,0.11697,87304.0,87303.0,0.02091213]
[1765897977962,0.00011248,87312.0,87304.0,0.03393]
[1765897978165,0.00011248,87312.0,87308.0,0.0114561]
[1765897978463,0.00011248,87312.0,87311.0,0.05748]
[1765897978662,0.00011248,87312.0,87311.0,0.11529]
[1765897978868,0.00011248,87312.0,87311.0,0.12474533]
[1765897979070,0.00011248,87312.0,87311.0,0.15509964]
[1765897979267,0.00011248,87312.0,87311.0,0.12474533]
[1765897979567,0.00211248,87312.0,87311.0,0.14561996]
[1765897979768,0.00211248,87312.0,87311.0,0.15580992]
[1765897980168,0.11908248,87312.0,87311.0,0.01018996]
[1765897980464,0.11908248,87312.0,87292.0,0.0114582]
[1765897980465,0.11697,87296.0,87292.0,0.0114582]
[1765897980674,0.11697,87296.0,87288.0,0.0114587]
[1765897981058,0.11697,87280.0,87275.0,0.03038513]
[1765897981272,0.005,87312.0,87276.0,0.06433782]
[1765897981467,0.11697,87287.0,87286.0,0.011459]
[1765897981865,0.005,87312.0,87307.0,0.0114563]
[1765897982064,0.11697,87302.0,87301.0,0.00017185]
[1765897983162,0.11897,87302.0,87301.0,0.00017185]
[1765897983361,0.52097,87302.0,87301.0,0.00017185]
[1765897983965,0.52297,87302.0,87301.0,0.00017185]
[1765897984157,0.05604,87279.0,87276.0,0.03393]
[1765897984357,0.11033,87290.0,87289.0,0.0114587]
[1765897984567,0.11733,87302.0,87301.0,0.0114571]
[1765897985660,0.05604,87301.0,87300.0,0.0114572]
[1765897985862,0.00017185,87310.0,87309.0,0.117876]
[1765897986066,0.11033,87330.0,87318.0,0.03189]
[1765897986363,0.71337357,87350.0,87332.0,0.03189]
[1765897986564,0.28981357,87342.0,87333.0,0.0114529]
[1765897986770,0.11033,87334.0,87333.0,0.0114529]
[1765897986968,0.11033,87333.0,87332.0,0.03189]
[1765897987269,0.11033,87326.0,87325.0,0.00017174]
[1765897988959,0.007,87330.0,87329.0,0.0114534]
[1765897989158,0.05604,87332.0,87331.0,0.011453]
[1765897989375,0.004,87333.0,87331.0,0.064813]
[1765897989770,0.05604,87331.0,87330.0,0.03189]
[1765897989972,0.11233,87326.0,87325.0,0.00017174]
[1765897990285,0.002,87326.0,87325.0,0.13689657]
[1765897990476,0.11233,87326.0,87325.0,0.03047657]
[1765897990970,0.003,87331.0,87330.0,0.1178733]
[1765897991173,0.003,87331.0,87330.0,0.14817813]
[1765897992370,0.11050174,87342.0,87341.0,0.0114518]
[1765897992769,0.00017174,87342.0,87341.0,0.1178718]
[1765897993074,0.11050174,87342.0,87341.0,0.0114518]
[1765897993679,0.11450174,87342.0,87341.0,0.0114518]
[1765897993879,0.11033,87340.0,87339.0,0.011452]
[1765897994173,0.11033,87333.0,87332.0,0.03189]
[1765897994372,0.11033,87326.0,87325.0,0.01162554]
[1765897994573,0.11033,87326.0,87325.0,0.04188503]
[1765897994972,0.11033,87326.0,87325.0,0.03043123]
[1765897995277,0.11033,87326.0,87325.0,0.00017174]
[1765897996373,0.11333,87326.0,87325.0,0.00017174]